Cogmind - Beta 17.1 @@@ ROGUE MODE // 2026.09.04 @ 21:52:24 Player: LandRaider Result: Core melted Performance ------------- Evolutions (4) 2000 Regions Visited (13) 2600 Robots Destroyed (116) 580 Value Destroyed (5884) 5884 Prototype IDs (31) 620 Alien Tech Used (0) 0 Bonus (5809) 5809 TOTAL SCORE: 17493 Bonus ------- High Alert Combat Kills 1746 Follower Combat Kills 1083 Entered Garrisons 800 Used RIF Installer 2000 Aligned with FarCom 300 Friendly Fire -120 Cogmind --------- Core Integrity 0/850 Matter 152/300 Energy 56/170 System Corruption 10% Temperature Critical (771) Movement Walking (190) Ox1 Location -6/Garrison Parts ------- > --- POWER (1) -------- Light Antimatter Reactor > --- PROPULSION (4) --- Flexi-carbon Leg Flexi-carbon Leg > --- UTILITY (6) ------ High-capacity Storage Unit Enhanced Optical Array Focal Shield Advanced Hacking Suite Relay Coupler [NC] (19) Relay Coupler [Duelist] (17) > --- WEAPON (4) ------- Lightning Gun Field Laser (fused) Heavy Laser > --- INVENTORY (20) --- Carbon-fiber Leg Advanced Heat Sink Advanced Heat Sink Energy Well (350) ECM Suite Relay Coupler [Sentry] (27) Relay Coupler [Demolisher] (21) Relay Coupler [Specialist] (23) Relay Coupler [Hunter] (27) Relay Coupler [Behemoth] (12) Proton Cannon Heavy Flak Cannon Long-range Missile Launcher Falx Peak State ------------ > --- POWER ------------ Light Angular Momentum Engine > --- PROPULSION ------- Flexi-carbon Leg Armored Leg Armored Leg Armored Leg > --- UTILITY ---------- High-capacity Storage Unit YI-UF0's Bottomless Matter Pit Enhanced Optical Array Advanced Shield Generator Advanced Hacking Suite Relay Coupler [Duelist] > --- WEAPON ----------- KE Penetrator Magnetic Acceleration Cannon Magnetic Acceleration Cannon Remote Datajack > --- INVENTORY -------- Hybrid Fission Core Carbon-fiber Leg Advanced Heat Sink Advanced Heat Sink Energy Well Experimental Sensor Array Authchip [R/Combat] Relay Coupler [NC] Relay Coupler [NC] Relay Coupler [Sentry] Relay Coupler [Demolisher] Relay Coupler [Specialist] Relay Coupler [Hunter] Relay Coupler [Behemoth] Long-range Missile Launcher Improved Concussive RPG Falx [Rating: 82] Favorites ----------- Power Ion Engine Engine Ion Engine Power Core Light Fission Core Reactor Light Quantum Reactor Propulsion Light Treads Treads Light Treads Leg Flexi-carbon Leg Flight Unit Improved Cesium-ion Thruster Utility High-capacity Storage Unit Device Seismic Detector Storage High-capacity Storage Unit Processor Core Analyzer Hackware Advanced Hacking Suite Protection Hardened Medium Armor Plating Weapon Assault Rifle Energy Gun Gatling Laser Energy Cannon Disruptor Cannon Ballistic Gun Assault Rifle Ballistic Cannon Advanced Assault Cannon Launcher Heavy Missile Launcher Special Weapon Remote Datajack Impact Weapon Heavy Flail Slashing Weapon Axe Build | -11 -10 -10 -10 -9 -8 -7 -7 -7 -7 -6 -6 -6 -6 ------- Run | Yrd Mat Min Exi Min Mat Fac Gar Fac Gar Fac Gar Fac Gar Slots Evolved 8 | . . . . . 4 2 . . . 2 . . . Power . | . . . . . . . . . . . . . . Propulsion 2 | . . . . . 1 1 . . . . . . . Utility 4 | . . . . . 3 . . . . 1 . . . Weapon 2 | . . . . . . 1 . . . 1 . . . Parts Attached 133 | 8 9 2 1 . 5 15 14 4 20 4 17 32 2 Power 14 | 1 2 . . . 1 1 1 . 4 . 2 1 1 Engine 6 | 1 2 . . . . . . . 1 . 2 . . Core 5 | . . . . . 1 1 1 . 1 . . 1 . Reactor 3 | . . . . . . . . . 2 . . . 1 Propulsion 36 | 2 3 . . . . 6 1 2 2 2 8 9 1 Treads 6 | 2 3 . . . . . . . . . 1 . . Leg 29 | . . . . . . 6 1 2 2 2 7 8 1 Wheel . | . . . . . . . . . . . . . . Hover . | . . . . . . . . . . . . . . Flight 1 | . . . . . . . . . . . . 1 . Utility 46 | 2 2 1 1 . 4 3 6 2 11 2 2 10 . Device 17 | 1 . . . . 3 2 3 . 1 2 1 4 . Storage 5 | 1 1 1 1 . . . . 1 . . . . . Processor 6 | . 1 . . . . 1 2 . . . . 2 . Hackware 16 | . . . . . . . 1 1 9 . 1 4 . Protection 2 | . . . . . 1 . . . 1 . . . . Artifact . | . . . . . . . . . . . . . . Weapon 37 | 3 2 1 . . . 5 6 . 3 . 5 12 . Energy Gun 11 | . . . . . . 2 1 . 2 . 1 5 . Energy Cannon 1 | . . . . . . . . . 1 . . . . Ballistic Gun 6 | 3 1 . . . . . 1 . . . 1 . . Ballistic Cannon 6 | . . 1 . . . 1 2 . . . . 2 . Launcher 5 | . 1 . . . . . 1 . . . 1 2 . Special Weapon 2 | . . . . . . . 1 . . . . 1 . Impact Weapon 4 | . . . . . . 2 . . . . 1 1 . Slashing Weapon 2 | . . . . . . . . . . . 1 1 . Piercing Weapon . | . . . . . . . . . . . . . . Special Melee Weapon . | . . . . . . . . . . . . . . Unidentified Prototypes 4 | . . 1 . . . 1 . . . . . 2 . Parts Lost 37 | . 1 1 . . 1 . 2 . 11 . 7 12 2 Power 5 | . . 1 . . . . . . 2 . 1 1 . Propulsion 12 | . . . . . . . . . 5 . 3 2 2 Utility 9 | . . . . . . . 2 . 2 . . 5 . Weapon 11 | . 1 . . . 1 . . . 2 . 3 4 . Highest Loss Streak 9 | . 1 1 . . 1 . 2 . 3 . 3 9 2 To Critical Strikes . | . . . . . . . . . . . . . . Average Backups 16 | 3 14 13 13 16 18 16 14 16 18 18 19 19 15 Power 1 | . 1 1 1 1 1 . . 1 . . 1 1 . Propulsion 2 | 1 4 3 3 3 3 . . 1 . . . . 1 Utility 8 | . 2 3 3 4 5 7 5 7 11 14 15 15 9 Weapon 4 | . 4 5 6 7 9 8 6 5 5 4 2 1 4 Tool/Special . | . . . . . . . . . . . . . . Unused Backups 41 | . . 1 . . . 6 2 1 10 . 3 6 12 Power 2 | . . . . . . 1 . . . . . 1 . Propulsion 1 | . . . . . . . . . . . . 1 . Utility 28 | . . 1 . . . 1 2 . 8 . 3 3 10 Weapon 9 | . . . . . . 4 . 1 2 . . . 2 Tool/Special 1 | . . . . . . . . . . . . 1 . Average Slot Usage (%) 93 | . 86 92 100 100 85 91 94 100 93 93 97 96 97 Engine 6 | . 13 10 14 14 2 . . . 3 . 3 4 . Core 1 | . . . . . 6 7 7 7 . . . 1 . Reactor 1 | . . . . . . . . . 2 6 2 . 5 Treads 10 | . 27 28 28 28 18 6 . . . . . . . Leg 16 | . . . . . . 23 30 30 28 23 25 25 24 Device 8 | . 13 . . . 17 15 6 4 . 10 13 9 6 Storage 9 | . 14 14 14 14 9 7 7 7 7 6 6 6 6 Processor 9 | . . 14 14 14 9 7 16 23 17 6 6 5 6 Hackware 4 | . . . . . . . . 2 9 6 6 14 20 Protection 2 | . . . . . 5 6 5 . . 6 5 1 . Energy Gun 4 | . . . . . . 6 7 7 5 6 5 6 20 Ballistic Gun 6 | . 14 14 14 14 9 1 . . . . 2 3 . Ballistic Cannon 4 | . . 10 14 14 8 . 2 7 4 5 6 7 . Impact Weapon 2 | . . . . . . 5 6 4 5 6 4 . . Peak Build Rating 82 | 7 8 15 12 14 23 62 62 59 66 79 79 82 72 Average Rating 41 | 5 7 9 11 12 20 46 57 57 55 71 70 72 67 On Entrance 37 | . 7 7 10 12 14 21 62 57 59 62 79 72 68 Avg Prop Armor Cover (%) 7 | . . . . . . 7 . . . . . . . Naked Turns . | . . . . . . . . . . . . . . Heaviest Build 86 | 12 30 31 51 51 62 70 52 66 75 84 84 86 67 Greatest Support 80 | 40 40 40 40 40 40 73 78 80 80 76 76 68 72 Greatest Overweight (x) 1 | . 1 . 1 1 1 1 . . 1 1 1 1 1 Average Overweight (x) . | . . . . 1 1 . . . . 1 1 . . Largest Inventory Capacity 20 | 8 15 15 20 20 20 20 15 20 20 20 20 20 20 Average Capacity 17 | 7 14 14 15 20 20 17 15 17 20 20 20 20 20 Most Carried 20 | 5 15 15 16 20 20 20 15 20 20 20 20 20 20 Average Carried 16 | 3 14 13 14 17 19 16 14 16 18 18 19 19 14 Final Capacity 20 | 8 15 15 20 20 20 15 15 20 20 20 20 20 20 Final Carried 20 | 5 15 13 16 20 20 15 15 20 19 20 20 20 14 Class Distribution -------------------- 50% | Mutant 9% | Bothacker-Mutant 7% | Commander-Mutant 6% | Scavenger-Skirmisher 6% | Bothacker-Gunner 5% | Commander-Skirmisher 3% | Botlord-Skirmisher Dominant Class ---------------- Mutant | -10/Materials Mutant | -10/Mines Mutant | -10/Exiles Mutant | -9/Mines Mutant | -8/Materials Mutant | -7/Factory Mutant | -7/Garrison Bothacker-Mutant | -7/Factory Bothacker-Mutant | -7/Garrison Commander-Skirmisher | -6/Factory Scavenger-Skirmisher | -6/Garrison Botlord-Skirmisher | -6/Factory Bothacker-Skirmisher | -6/Garrison Resources | -11 -10 -10 -10 -9 -8 -7 -7 -7 -7 -6 -6 -6 -6 ----------- Run | Yrd Mat Min Exi Min Mat Fac Gar Fac Gar Fac Gar Fac Gar Matter Collected 8128 | 328 484 387 . 384 149 131 1161 248 823 207 2954 872 . Remotely . | . . . . . . . . . . . . . . Salvage Created 3914 | 146 592 140 . 1 28 131 393 332 414 47 892 736 62 Parts 204 | 15 59 6 . 1 8 8 12 16 20 2 24 31 2 Haulers Intercepted 6 | . 2 . . . . 1 . 1 . . . 2 . Recyclers Shooed 1 | . 1 . . . . . . . . . . . . Parts Field Recycled . | . . . . . . . . . . . . . . Retrieved Matter . | . . . . . . . . . . . . . . Parts Self-Destructed . | . . . . . . . . . . . . . . Prevented . | . . . . . . . . . . . . . . Parts Restored . | . . . . . . . . . . . . . . Kills | -11 -10 -10 -10 -9 -8 -7 -7 -7 -7 -6 -6 -6 -6 ------- Run | Yrd Mat Min Exi Min Mat Fac Gar Fac Gar Fac Gar Fac Gar Combat Hostiles Destroyed 79 | . 14 2 . . 4 2 7 4 9 . 25 11 1 Guns 31 | . 5 . . . . 2 5 1 2 . 11 4 1 Cannons 21 | . . 2 . . . . 1 2 3 . 7 6 . AOE 24 | . 9 . . . 4 . . 1 3 . 7 . . Classes Destroyed 17 | 2 7 . . . . 1 2 . . 1 2 2 . Worker 6 | . 2 . . 1 . . . 3 . . . . . Builder 4 | . 2 . . . . . . 1 . . . 1 . Tunneler 5 | 4 1 . . . . . . . . . . . . Hauler 6 | . 2 . . . . 1 . 1 . . . 2 . Recycler 6 | 1 2 1 . . . . . 2 . . . . . Mechanic 1 | . . . . . . . . . . 1 . . . Operator 1 | . 1 . . . . . . . . . . . . Watcher 6 | . 3 . . . . . 1 2 . . . . . Swarmer 35 | . 9 1 . . 4 . 3 2 5 . 11 . . Grunt 21 | . 5 . . . . . . . 2 . 9 4 1 Brawler 4 | . . . . . . . . . . . 1 3 . Duelist 1 | . . . . . . . . . . . . 1 . Protector 1 | . . . . . . . . . . . . 1 . Sentry 5 | . . . . . . . 3 . 2 . . . . Hunter 2 | . . . . . . . 1 1 . . . . . Programmer 10 | . . . . . . 2 . 1 1 . 3 3 . Behemoth 1 | . . . . . . . . . . . 1 . . Best Kill Streak 10 | 5 10 1 . 1 4 1 3 5 4 1 8 5 1 Combat Bots Only 8 | . 6 1 . . 4 1 3 3 4 . 8 5 1 Max Kills in Single Turn 5 | 1 5 1 . 1 4 1 1 3 3 1 4 2 1 Gunslinging . | . . . . . . . . . . . . . . Exploded 4 | . 4 . . . 4 . . 1 3 . 4 . . Melee . | . . . . . . . . . . . . . . Uniques/NPCs Destroyed 1 | . . 1 . . . . . . . . . . . YI-UF0 (-10/Mines) Combat | -11 -10 -10 -10 -9 -8 -7 -7 -7 -7 -6 -6 -6 -6 -------- Run | Yrd Mat Min Exi Min Mat Fac Gar Fac Gar Fac Gar Fac Gar Hostile Shots Fired 747 | . 69 5 . 2 22 6 72 10 214 . 169 166 12 Missed 232 | . 16 . . . 5 3 26 3 69 . 73 37 . Hits 515 | . 53 5 . 2 17 3 46 7 145 . 96 129 12 Melee 3 | . . . . . . . . . . . . 3 . Projectile 512 | . 53 5 . 2 17 3 46 7 145 . 96 126 12 AOE 3 | . . 3 . . . . . . . . . . . Critical Strikes 15 | . . . . . 1 . . . . . 3 9 2 Part Disruptions 1 | . . . . . . . . . . . 1 . . Damage Taken 8299 | . 504 113 . 33 249 43 719 138 1941 . 1487 2614 458 Core 1478 | . 60 . . 15 28 . 55 13 415 . 95 529 268 Absorbed by Shields 377 | . . . . . . . . 23 39 . 177 138 . Core Remaining (%) 73 | 100 . . . 70 94 . . . 31 . . . . Volleys Fired 900 | 12 94 11 . 6 1 3 133 24 248 2 259 101 6 Largest 4 | 2 2 2 . 2 2 1 2 3 2 2 4 3 3 Hottest 206 | 40 40 53 . 53 50 40 115 154 161 120 206 187 187 Shots Fired 1188 | 24 120 22 . 12 2 12 163 43 257 3 334 178 18 Gun 699 | 24 110 11 . 6 1 9 146 19 219 1 70 65 18 Cannon 404 | . . 11 . 6 . 3 11 17 12 2 252 90 . Launcher 32 | . 10 . . . 1 . 5 2 2 . 12 . . Special 53 | . . . . . . . 1 5 24 . . 23 . Kinetic 605 | 24 110 22 . 12 1 3 16 17 7 2 274 117 . Thermal 482 | . . . . . . 9 141 19 219 1 47 34 12 Explosive 27 | . 10 . . . 1 . 5 2 2 . 7 . . Electromagnetic 21 | . . . . . . . . . 5 . 6 4 6 Robot Hit Streak 18 | 9 13 7 . 4 . 5 18 6 16 3 11 9 6 Robot Miss Streak 7 | 2 7 3 . 3 . 2 2 3 2 1 4 4 3 Penetration Max 1 | . . . . . . . . . . . . 1 . Secondary Targets . | . . . . . . . . . . . . . . Autonomous 30 | . . . . . . 9 21 . . . . . . Shots Hit Robots 401 | 16 65 9 . 6 . 9 40 22 49 2 98 77 8 Core Hits 200 | 8 42 5 . 2 4 2 11 17 14 2 62 28 3 Critical Kills . | . . . . . . . . . . . . . . Critical Parts Destroyed 7 | . . . . . . 1 3 . 1 . 2 . . Critical Strikes 17 | . . 1 . . . 1 4 1 2 . 4 4 . Burn 4 | . . . . . . . . 1 1 . . 2 . Destroy 1 | . . . . . . . . . . . 1 . . Blast 5 | . . 1 . . . . 1 . . . 2 1 . Corrupt 1 | . . . . . . . . . . . . 1 . Smash 6 | . . . . . . 1 3 . 1 . 1 . . Melee Attacks 271 | . . . . . . 22 100 16 61 . 59 13 . Impact 266 | . . . . . . 22 100 16 61 . 59 8 . Slashing 5 | . . . . . . . . . . . . 5 . Piercing . | . . . . . . . . . . . . . . Sneak Attacks 1 | . . . . . . 1 . . . . . . . Combat Hostiles . | . . . . . . . . . . . . . . Follow-up Attacks . | . . . . . . . . . . . . . . Damage Inflicted 11247 | 208 1530 191 . 103 143 451 1254 848 1134 50 3462 1708 165 Guns 4692 | 208 802 55 . 22 . 260 668 300 270 24 1159 759 165 Cannons 2913 | . . 130 . 76 . . 149 317 182 26 1094 939 . Explosions 2270 | . 728 . . . 143 . . 231 318 . 850 . . Melee 1351 | . . . . . . 191 437 . 364 . 359 . . Ramming 21 | . . 6 . 5 . . . . . . . 10 . Kinetic 4732 | 208 802 185 . 98 . . 184 317 145 26 1456 1311 . Thermal 2765 | . . . . . . 260 633 300 270 24 782 375 121 Explosive 2221 | . 728 . . . 143 . . 231 318 . 801 . . Electromagnetic 157 | . . . . . . . . . 37 . 64 12 44 Impact 1351 | . . . . . . 191 437 . 364 . 359 . . Slashing . | . . . . . . . . . . . . . . Piercing . | . . . . . . . . . . . . . . Highest Corruption 10 | . . . . . . . 5 1 10 . 2 10 10 Average Corruption 4 | . . . . . . . 4 1 3 . 1 8 10 Corruption Purged 7 | . . . . . . . 5 . . . . 2 . Corruption Blocked . | . . . . . . . . . . . . . . Effects 167 | . . . . . . . 27 8 86 . 2 39 5 Message Errors 46 | . . . . . . . 7 2 23 . . 11 3 Matter Fused 47 | . . . . . . . 6 4 23 . 1 13 . Heat Flow Errors 28 | . . . . . . . 3 2 16 . . 5 2 Energy Discharges 10 | . . . . . . . 2 . 7 . . 1 . Parts Fused 2 | . . . . . . . . . 1 . . 1 . Data Loss (minor) 17 | . . . . . . . 6 . 8 . . 3 . Data Loss (major) 10 | . . . . . . . . . 5 . 1 4 . Misfires 4 | . . . . . . . 2 . 1 . . 1 . Alerts 2 | . . . . . . . 1 . 1 . . . . Weapon Failures 1 | . . . . . . . . . 1 . . . . Overload Shots . | . . . . . . . . . . . . . . Overflow Damage 742 | . 5 . . . . 151 237 4 172 . 160 13 . Projectiles 51 | . . . . . . . . 4 . . 34 13 . Explosions 96 | . 5 . . . . . . . 60 . 31 . . Melee 595 | . . . . . . 151 237 . 112 . 95 . . Knockbacks 31 | . . 4 . . . 1 2 4 1 . 9 10 . Impact 4 | . . . . . . 1 1 . . . 2 . . Kinetic 23 | . . 3 . . . . 1 4 1 . 5 9 . Secondary 4 | . . 1 . . . . . . . . 2 1 . Self-Inflicted Damage 71 | . . . . . . . . . 4 . 51 16 . Shots 5 | . . . . . . . . . 1 . 3 1 . Rammed 1 | . . 1 . . . . . . . . . . . Targets Rammed 3 | . . 1 . 1 . . . . . . . 1 . Kicked 1 | . . . . . . . . . . . . 1 . Crushed 1 | . . . . 1 . . . . . . . . . Highest Temperature 771 | . 12 . . . 8 . 352 211 263 . 74 380 771 Average Temperature 97 | . 6 . . . 5 . 107 55 91 . 22 142 323 Received Heat Transfer 1894 | . 138 . . 9 126 . 72 . 309 . 282 820 138 Effects 11 | . . . . . . . 3 . 2 . . 1 5 Shutdowns 1 | . . . . . . . . . . . . . 1 Energy Bleed 4 | . . . . . . . 1 . 2 . . 1 . Interference 2 | . . . . . . . 2 . . . . . . Matter Decay 1 | . . . . . . . . . . . . . 1 Damage (minor) 1 | . . . . . . . . . . . . . 1 Damage (core) 2 | . . . . . . . . . . . . . 2 Siege Activations . | . . . . . . . . . . . . . . Martial Activations . | . . . . . . . . . . . . . . Shielding Activations . | . . . . . . . . . . . . . . Robots Disrupted . | . . . . . . . . . . . . . . Combat Hostiles . | . . . . . . . . . . . . . . Robots Corrupted 4 | . . . . . . . 1 . 1 . 2 . . Combat Hostiles 3 | . . . . . . . 1 . 1 . 1 . . Parts Fried 7 | . . . . . . . 3 . 1 . 3 . . Impact Corruptions 15 | . . 1 . . . 2 5 . 4 . 3 . . Robots Melted 1 | . . . . . . . . . . . . 1 . Combat Hostiles 1 | . . . . . . . . . . . . 1 . Parts Melted 12 | . . . . . . . 2 3 1 . 5 1 . Heat Transferred 4966 | . . . . . . 259 812 555 569 50 1584 878 259 Parts Sabotaged 4 | . . . . . . . . . . . . 4 . Parts Stolen . | . . . . . . . . . . . . . . Parts Stripped . | . . . . . . . . . . . . . . Power Chain Reactions . | . . . . . . . . . . . . . . Alert | -11 -10 -10 -10 -9 -8 -7 -7 -7 -7 -6 -6 -6 -6 ------- Run | Yrd Mat Min Exi Min Mat Fac Gar Fac Gar Fac Gar Fac Gar Maximum Alert Level 5 | . 1 . . . . . 4 2 5 5 5 5 3 Low Security (%) 43 | 100 89 100 . 100 100 100 44 . . . . . . Level 1 4 | . 10 . . . . . 14 . 1 . . . . Level 2 11 | . . . . . . . 18 100 27 . . . . Level 3 10 | . . . . . . . 22 . 16 . 27 . 100 Level 4 13 | . . . . . . . . . 14 50 16 86 . Level 5 17 | . . . . . . . . . 39 49 56 13 . High Security . | . . . . . . . . . . . . . . Max Security . | . . . . . . . . . . . . . . Peak Influence 3294 | 15 322 82 . 5 102 41 1163 648 3207 1683 3294 1729 1010 Initial 1729 | . 3 . . . . 41 21 610 399 1683 1055 1729 1010 Average 768 | 2 39 14 . . 6 6 397 572 1435 1593 1834 1457 1008 Influence Increases 8641 | 25 541 119 . 6 117 145 1162 423 2978 63 2489 553 20 Destroy 0b10 Robot/C 2180 | . 280 80 . . 80 40 140 140 360 20 760 260 20 Destroy 0b10 Robot/NC 225 | 25 65 5 . 5 . 5 10 60 10 5 10 25 . Destroy Leader 312 | . 60 10 . . 10 22 10 66 20 10 40 64 . Allied During Kill 282 | . . 9 . . . . . 20 97 12 133 11 . Trap Triggered on 0b10 60 | . . . . . . . 20 . 40 . . . . Successful Hack 154 | . 23 . . . . 46 . 30 7 . 10 38 . Select Force Hacks 30 | . 30 . . . . . . . . . . . . Disable Machine 345 | . 45 15 . . . 15 60 60 30 15 15 90 . Anti-Garrison Action 4500 | . . . . . . . 850 . 2250 . 1400 . . Destroy Structure 388 | . 38 . . 1 12 17 57 47 119 1 61 35 . Lose Combat Pursuer 165 | . . . . . 15 . 15 . 45 . 60 30 . Influence Decreases 7651 | 20 546 119 . 6 26 205 30 1015 342 1762 703 2403 474 Entered New Map 4763 | . 2 . . . . 50 10 553 172 1524 453 1565 434 Time Decay 2066 | 20 534 99 . 6 16 153 . 422 . 198 . 618 . Lost Part 360 | . 10 . . . 10 . 20 . 110 . 70 120 20 Lost Ally 462 | . . 20 . . . 2 . 40 60 40 180 100 20 Squads Dispatched 21 | . 2 . . . . 4 . 6 . 1 . 8 . Investigation 4 | . 1 . . . . 1 . 1 . . . 1 . Extermination 8 | . . . . . . 3 . 2 . . . 3 . Reinforcement 3 | . 1 . . . . . . 1 . . . 1 . Assault 6 | . . . . . . . . 2 . 1 . 3 . Garrison . | . . . . . . . . . . . . . . Intercept . | . . . . . . . . . . . . . . Searches Triggered . | . . . . . . . . . . . . . . Construction Impeded . | . . . . . . . . . . . . . . Haulers Reinforced 1 | . . . . . . . . . . . . 1 . Active Scanning Responses . | . . . . . . . . . . . . . . Cargo Convoy Interrupts . | . . . . . . . . . . . . . . Stealth | -11 -10 -10 -10 -9 -8 -7 -7 -7 -7 -6 -6 -6 -6 --------- Run | Yrd Mat Min Exi Min Mat Fac Gar Fac Gar Fac Gar Fac Gar Distress Signals 1 | . . . . . . . . 1 . . . . . Communications Jammed . | . . . . . . . . . . . . . . Distress Signals . | . . . . . . . . . . . . . . Times Spotted 154 | . 21 4 . 2 7 3 9 11 24 3 38 28 4 Peak Tracking Total 10 | . 6 3 . 2 6 1 2 3 6 2 5 10 4 Tactical Retreats 9 | . . . . . 1 . 1 . 3 . 2 2 . Traps | -11 -10 -10 -10 -9 -8 -7 -7 -7 -7 -6 -6 -6 -6 ------- Run | Yrd Mat Min Exi Min Mat Fac Gar Fac Gar Fac Gar Fac Gar Traps Triggered 15 | . 4 . . . . . 4 . 6 . 1 . . Indirectly . | . . . . . . . . . . . . . . Trap Hack Attempts . | . . . . . . . . . . . . . . Triggered . | . . . . . . . . . . . . . . Disarmed . | . . . . . . . . . . . . . . Reprogrammed . | . . . . . . . . . . . . . . Reused 6 | . . . . . . . 2 . 4 . . . . Traps Extracted . | . . . . . . . . . . . . . . Installed 16 | . . . . . . . 8 . 8 . . . . Triggered 6 | . . . . . . . 2 . 4 . . . . Most Traps Carried 5 | . . . . . . . 2 . 5 . . . . Machines | -11 -10 -10 -10 -9 -8 -7 -7 -7 -7 -6 -6 -6 -6 ---------- Run | Yrd Mat Min Exi Min Mat Fac Gar Fac Gar Fac Gar Fac Gar Machines Disabled 36 | . 3 1 . . . 1 7 4 8 1 5 6 . Max in Single Turn 3 | . 2 1 . . . 1 1 . 2 . 1 3 . Garrison Access 1 | . . . . . . . . 1 . . . . . Garrison Relay 11 | . . . . . . . 3 . 4 . 4 . . Phase Generator 1 | . . . . . . . . . 1 . . . . Machines Repaired . | . . . . . . . . . . . . . . Machines Dismantled . | . . . . . . . . . . . . . . Machines Sabotaged . | . . . . . . . . . . . . . . Overloaded Fab Kills . | . . . . . . . . . . . . . . Hacking | -11 -10 -10 -10 -9 -8 -7 -7 -7 -7 -6 -6 -6 -6 --------- Run | Yrd Mat Min Exi Min Mat Fac Gar Fac Gar Fac Gar Fac Gar Machines Accessed 35 | . 8 . 1 . 1 4 1 7 3 3 3 4 . Terminals 21 | . 7 . . . 1 1 1 2 3 1 3 2 . Fabricators 4 | . . . . . . 1 . 3 . . . . . Repair Stations 2 | . . . . . . . . . . 1 . 1 . Recycling Units 2 | . 1 . . . . 1 . . . . . . . Scanalyzers . | . . . . . . . . . . . . . . Garrison Access 5 | . . . . . . 1 . 2 . 1 . 1 . Total Hacks 81 | . 26 . 1 . 3 10 1 15 5 6 4 10 . Successful 37 | . 15 . 1 . 1 5 . 6 1 2 1 5 . Failed 44 | . 11 . . . 2 5 1 9 4 4 3 5 . Catastrophic 9 | . 1 . . . . 1 1 2 2 . 1 1 . Database Lockouts . | . . . . . . . . . . . . . . Manual 23 | . 9 . 1 . 2 2 . 5 . 1 . 3 . Terminals 54 | . 25 . . . 3 3 1 4 5 3 4 6 . Fabricators 7 | . . . . . . 2 . 5 . . . . . Repair Stations 3 | . . . . . . . . . . 1 . 2 . Recycling Units 4 | . 1 . . . . 3 . . . . . . . Scanalyzers . | . . . . . . . . . . . . . . Garrison Access 12 | . . . . . . 2 . 6 . 2 . 2 . Terminal Hacks 16 | . 10 . 1 . . 1 . . 1 . 1 2 . Part Schematic 1 | . . . . . . . . . . . . 1 . Robot Analysis 1 | . 1 . . . . . . . . . . . . Prototype ID Bank 2 | . 2 . . . . . . . . . . . . Open Door 1 | . . . . . . . . . 1 . . . . Emergency Access Points 2 | . . . . . . 1 . . . . 1 . . Garrison Index 1 | . . . . . . . . . . . . 1 . Locate Traps 4 | . 4 . . . . . . . . . . . . Transport Status 1 | . 1 . . . . . . . . . . . . Investigation Status 1 | . 1 . . . . . . . . . . . . Recall Reinforcements 1 | . 1 . . . . . . . . . . . . Proto ID Catalog 1 | . . . 1 . . . . . . . . . . Fabricator Hacks 3 | . . . . . . 1 . 2 . . . . . Build 3 | . . . . . . 1 . 2 . . . . . Repair Station Hacks 1 | . . . . . . . . . . . . 1 . Scan Component 1 | . . . . . . . . . . . . 1 . Recycling Unit Hacks 1 | . . . . . . 1 . . . . . . . Retrieve Components 1 | . . . . . . 1 . . . . . . . Scanalyzer . | . . . . . . . . . . . . . . Garrison Access Hacks 8 | . . . . . . 1 . 3 . 2 . 2 . Unlock Access 5 | . . . . . . 1 . 2 . 1 . 1 . Coupler Status 3 | . . . . . . . . 1 . 1 . 1 . Unauthorized Hacks 8 | . 5 . . . 1 1 . 1 . . . . . Terminals 5 | . 4 . . . 1 . . . . . . . . Botnet 5 | . 4 . . . 1 . . . . . . . . Fabricators . | . . . . . . . . . . . . . . Repair Stations . | . . . . . . . . . . . . . . Recycling Units 2 | . 1 . . . . 1 . . . . . . . Reject 1 | . . . . . . 1 . . . . . . . Tunnel 1 | . 1 . . . . . . . . . . . . Scanalyzers . | . . . . . . . . . . . . . . Garrison Access 1 | . . . . . . . . 1 . . . . . Restock 1 | . . . . . . . . 1 . . . . . Data Cores Recovered 1 | . 1 . . . . . . . . . . . . Used . | . . . . . . . . . . . . . . Hacking Detections 29 | . 7 . . . 1 3 1 6 3 1 3 4 . Full Trace Events 3 | . . . . . . 1 . 1 . . . 1 . Feedback Events . | . . . . . . . . . . . . . . Feedback Blocked . | . . . . . . . . . . . . . . Robot Schematics Acquired . | . . . . . . . . . . . . . . Robots Built 4 | . . . . . . 1 . 3 . . . . . Authchips . | . . . . . . . . . . . . . . Time 250 | . . . . . . 116 . 134 . . . . . Total Robot Build Rating 15 | . . . . . . 3 . 12 . . . . . Part Schematics Acquired 1 | . . . . . . . . . . . . 1 . Parts Built 2 | . . . . . . . . 2 . . . . . Authchips . | . . . . . . . . . . . . . . Time 31 | . . . . . . . . 31 . . . . . Total Part Build Rating 10 | . . . . . . . . 10 . . . . . Part Studies Acquired . | . . . . . . . . . . . . . . Parts Repaired . | . . . . . . . . . . . . . . Time . | . . . . . . . . . . . . . . Parts Recycled . | . . . . . . . . . . . . . . Recycled Matter . | . . . . . . . . . . . . . . Retrieved Matter . | . . . . . . . . . . . . . . Retrieved Components 5 | . . . . . . 5 . . . . . . . Parts Scanalyzed . | . . . . . . . . . . . . . . Part Schematics Acquired . | . . . . . . . . . . . . . . Parts Damaged . | . . . . . . . . . . . . . . Bothacking | -11 -10 -10 -10 -9 -8 -7 -7 -7 -7 -6 -6 -6 -6 ------------ Run | Yrd Mat Min Exi Min Mat Fac Gar Fac Gar Fac Gar Fac Gar Used RIF Installer 4 | . . . . . . . 1 . 1 . 2 . . Robot Detection 1 | . . . . . . . . . . . 1 . . Structural Interface 1 | . . . . . . . . . 1 . . . . Autoassimilate 1 | . . . . . . . . . . . 1 . . Robots Hacked 23 | . . . . . . . 1 2 10 . . 10 . Non-combat 3 | . . . . . . . . 1 . . . 2 . Combat 20 | . . . . . . . 1 1 10 . . 8 . Robot Hacks Applied 25 | . . . . . . . 1 2 11 . . 11 . parse_system 1 | . . . . . . . . 1 . . . . . scatter_targeting 1 | . . . . . . . . . . . . 1 . reboot_system 1 | . . . . . . . . . . . . 1 . overwrite_iff 5 | . . . . . . . . . 2 . . 3 . formatsys_low 2 | . . . . . . . . . . . . 2 . formatsys_high 15 | . . . . . . . 1 1 9 . . 4 . Relay Couplers Released 54 | . . . . . . . 13 6 21 . 14 . . Machine Destruction 46 | . . . . . . . 13 2 17 . 14 . . Programmers 8 | . . . . . . . . 4 4 . . . . Attached 13 | . . . . . . . 1 1 7 . . 4 . Fabnet Peak Effective % . | . . . . . . . . . . . . . . Robots Rewired 8 | . . . . . . . . . 2 . 6 . . Allies Hacked 2 | . . . . . . . . . . . 1 1 . Hacks Repelled 1 | . . . . . . . . . . . 1 . . Allies | -11 -10 -10 -10 -9 -8 -7 -7 -7 -7 -6 -6 -6 -6 -------- Run | Yrd Mat Min Exi Min Mat Fac Gar Fac Gar Fac Gar Fac Gar Total Allies 38 | . . 3 . . . 1 1 4 12 . 8 9 . Largest Group 9 | . . 3 . . . 1 1 5 9 7 6 3 2 Highest-Rated Group 232 | . . 40 . . . 26 32 154 232 184 163 76 39 Highest-Rated Ally 80 | . . 16 . . . 26 32 32 39 39 80 47 20 Total Orders 22 | . . 1 . . . . 1 . 9 . 6 4 1 STAY 14 | . . . . . . . . . 8 . 2 3 1 FOLLOW 1 | . . . . . . . . . . . . 1 . GUARD 5 | . . 1 . . . . . . . . 4 . . AID 2 | . . . . . . . 1 . 1 . . . . Ally Attacks 188 | . . 16 . . . . . 18 57 5 53 39 . Total Damage 5135 | . . 154 . . . . . 829 1051 103 2154 844 . Kills 41 | . . 3 . . . . . 9 9 1 15 4 . Allies Corrupted . | . . . . . . . . . . . . . . Allies Melted 1 | . . . . . . . . . . . 1 . . Intel | -11 -10 -10 -10 -9 -8 -7 -7 -7 -7 -6 -6 -6 -6 ------- Run | Yrd Mat Min Exi Min Mat Fac Gar Fac Gar Fac Gar Fac Gar Active Infowar (turns) 13734 | 36 6021 . . . 604 1032 1023 . . 91 3007 1790 130 Optics 1399 | . . . . . . . . . . . . 1269 130 Sensors 145 | . . . . . 79 62 4 . . . . . . Traps 6693 | . . . . . 508 1032 1023 . . 91 3007 1032 . Seismic 7630 | 36 6021 . . . 603 970 . . . . . . . Jamming 360 | . . . . . . . 360 . . . . . . Robot Analysis Total 1 | . 1 . . . . . . . . . . . . Derelict Logs Recovered 2 | . . 1 . 1 . . . . . . . . . Drone Launches . | . . . . . . . . . . . . . . Drone Recoveries . | . . . . . . . . . . . . . . Exploration | -11 -10 -10 -10 -9 -8 -7 -7 -7 -7 -6 -6 -6 -6 ------------- Run | Yrd Mat Min Exi Min Mat Fac Gar Fac Gar Fac Gar Fac Gar Turns Passed 25252 | 119 6154 681 535 1510 614 1032 2707 1036 4733 400 3523 2079 129 Spaces Moved 9306 | 48 570 366 320 572 246 537 1243 586 2393 190 1292 877 66 Core 6 | 6 . . . . . . . . . . . . . Treads 2286 | 42 570 366 320 572 246 170 . . . . . . . Legs 7014 | . . . . . . 367 1243 586 2393 190 1292 877 66 Wheels . | . . . . . . . . . . . . . . Hover . | . . . . . . . . . . . . . . Flight . | . . . . . . . . . . . . . . Fastest Speed 50 | 50 160 160 160 240 240 122 125 125 120 190 190 120 120 Average Speed 157 | 146 160 160 166 240 240 159 125 125 126 190 190 168 121 Slowest Speed 240 | 160 240 160 240 240 240 240 125 125 190 190 190 190 190 Overloaded Moves . | . . . . . . . . . . . . . . Propulsion Burnouts . | . . . . . . . . . . . . . . Robots Hopped . | . . . . . . . . . . . . . . Potential Cave-ins 71 | . . . . . . . 22 . 28 . 11 10 . Cave-ins Triggered 4 | . . . . . . . 1 . 2 . . 1 . Exploration Rate (%) 47 | 4 96 62 72 94 22 10 66 20 96 7 90 23 2 Regions Visited 13 Branch Regions 3 Pre-discovered Areas 3 | . 1 1 . 1 . . . . . . . . . Known Exits Taken 9 | . 1 1 1 1 1 1 . 1 . 1 . 1 . Unknown Exits Taken 1 | 1 . . . . . . . . . . . . . Scrap Searched 3 | . . 1 . 2 . . . . . . . . . Spaces Dug 181 | . . . . . . 17 62 15 38 1 27 21 . Terrain Destroyed 849 | . 41 . . 1 10 17 147 36 313 1 225 58 . Melee 148 | . . . . . . 16 51 15 33 . 24 9 . Projectile 486 | . . . . 1 . 1 96 4 177 1 157 49 . AOE 215 | . 41 . . . 10 . . 17 103 . 44 . . Terrain Rammed . | . . . . . . . . . . . . . . Walls Destroyed . | . . . . . . . . . . . . . . Machines Disabled . | . . . . . . . . . . . . . . Actions | -11 -10 -10 -10 -9 -8 -7 -7 -7 -7 -6 -6 -6 -6 --------- Run | Yrd Mat Min Exi Min Mat Fac Gar Fac Gar Fac Gar Fac Gar Total 18446 | 71 5686 440 323 697 268 678 2102 824 3769 224 1942 1316 106 Wait 7386 | . 4995 42 . 115 13 65 556 186 929 26 217 219 23 Move 9295 | 47 569 365 319 571 245 537 1242 586 2390 190 1291 877 66 Hop . | . . . . . . . . . . . . . . Pick Up 133 | 4 5 12 2 4 1 12 16 4 39 . 14 20 . Fast Attach 65 | 7 9 2 . . 2 5 2 . 6 3 7 22 . Attach 47 | . . 2 . . 2 3 5 . 14 1 7 13 . Detach 6 | . 1 . . . 1 . . . . 1 . 3 . Swap 98 | 1 9 . 1 . 2 10 20 6 17 1 12 15 4 Drop 150 | . 4 5 1 . 1 21 17 2 37 . 23 32 7 Fire 900 | 12 94 11 . 6 1 3 133 24 248 2 259 101 6 Melee 271 | . . . . . . 22 100 16 61 . 59 13 . Ram . | . . . . . . . . . . . . . . Kick 1 | . . . . . . . . . . . . 1 . Crush 2 | . . 1 . 1 . . . . . . . . . Escape Stasis 27 | . . . . . . . 2 . 20 . 5 . . Rewire 49 | . . . . . . . 1 . . . 48 . . Trap 16 | . . . . . . . 8 . 8 . . . . Miscellaneous . | . . . . . . . . . . . . . . Route ------- -11/Scrapyard -10/Materials (discovered 5 exits: *Mat x3 / *Min x2) -10/Mines -10/Exiles (discovered 2 exits: *Min x2) -9/Mines (discovered 2 exits: *Mat x2) -8/Materials -7/Factory (discovered 2 exits: *Low / Gar) -7/Garrison (discovered 2 exits: *Fac x2) -7/Factory (discovered 2 exits: *Fac / Gar) -7/Garrison (discovered 3 exits: *Fac x3) -6/Factory -6/Garrison (discovered 3 exits: *Fac x3) -6/Factory -6/Garrison History --------- Turn | Location | Event 15 | -11/Scrapyard | Discovered new exit (range 15) 120 | -11/Scrapyard | Entered Materials 303 | -10/Materials | Build established: Mutant 329 | -10/Materials | Discovered new exit (range 4) 565 | -10/Materials | Discovered new exit (range 11) 567 | -10/Materials | Discovered new exit (range 13) 880 | -10/Materials | Discovered new exit (range 8) 6061 | -10/Materials | Discovered new exit (range 16) 6189 | -10/Materials | Identified exit to Materials 6263 | -10/Materials | Identified exit to Mines 6274 | -10/Materials | Entered Mines 6307 | -10/Mines | Assisted by bots powering up and referring to "LRC-V3" 6344 | -10/Mines | Learned location of Mines (-9) 6371 | -10/Mines | YI-UF0 nonchalantly dropped a Grenade Launcher on the ground 6428 | -10/Mines | Destroyed YI-UF0 6441 | -10/Mines | Found Prototype Storage 6441 | -10/Mines | Identified YI-UF0's Bottomless Matter Pit 6846 | -10/Mines | Deemed a non-threat by the Exiles lab entrance 6848 | -10/Mines | Discovered new exit (range 5) 6853 | -10/Mines | Identified exit to Exiles 6884 | -10/Mines | Assembled infested the area 6955 | -10/Mines | Entered Exiles 6981 | -10/Exiles | Discovered new exit (range 15) 7000 | -10/Exiles | Identified exit to Mines 7037 | -10/Exiles | Met 8R-AWN 7059 | -10/Exiles | Met EX-HEX 7114 | -10/Exiles | Met EX-BIN 7136 | -10/Exiles | Aligned with FarCom system 7138 | -10/Exiles | Given EX-Vault access code 7176 | -10/Exiles | Opened EX-Vault 7186 | -10/Exiles | Found AWS/Thermal 7220 | -10/Exiles | Warned to stay clear of 0b10 Research branches 7264 | -10/Exiles | Met EX-DEC 7464 | -10/Exiles | Discovered exit to Mines (range 14) 7490 | -10/Exiles | Left Exiles lab with AWS/Thermal 7490 | -10/Exiles | Entered Mines 7622 | -9/Mines | Found a damaged Exp. Sensor Array with a note attached 7627 | -9/Mines | Found Prototype Device 7924 | -9/Mines | Discovered new exit (range 10) 7980 | -9/Mines | Discovered new exit (range 5) 7989 | -9/Mines | Identified exit to Materials 8462 | -9/Mines | Joined a pair of Derelicts in attacking an 0b10 outpost 8483 | -9/Mines | Learned location of Zion (-6) 9000 | -9/Mines | Entered Materials 9000 | -8/Materials | Evolved 4 slots: Propulsion x1, Utility x3 9391 | -8/Materials | Discovered new exit (range 4) 9497 | -8/Materials | Identified exit to Factory 9614 | -8/Materials | Entered Factory 9614 | -7/Factory | Evolved 2 slots: Propulsion x1, Weapon x1 10312 | -7/Factory | Discovered new exit (range 7) 10367 | -7/Factory | Fabricated O-24 Administrator? 10376 | -7/Factory | Identified exit to Lower Caves 10581 | -7/Factory | Identified Exp. Sensor Array 10646 | -7/Factory | Identified exit to Garrison 10646 | -7/Factory | Entered Garrison 11226 | -7/Garrison | Garrison Relay disabled 11680 | -7/Garrison | Crushed by falling debris 12085 | -7/Garrison | Discovered new exit (range 13) 12099 | -7/Garrison | Identified exit to Factory 12238 | -7/Garrison | Triggered checkpoint 12240 | -7/Garrison | Garrison Relay disabled 12499 | -7/Garrison | Discovered exit to Factory (range 15) 12547 | -7/Garrison | AWS/Thermal suddenly broke down 12642 | -7/Garrison | Garrison Relay disabled 12945 | -7/Garrison | Installed Relay Interface Framework 13353 | -7/Garrison | Entered Factory 13353 | -7/Factory | Accompanied by 1 ally 13488 | -7/Factory | Identified exit to Garrison 13852 | -7/Factory | Build established: Bothacker-Mutant 13853 | -7/Factory | Fabricated L-41 Fighter (x3) 14084 | -7/Factory | Lost 5 allies 14293 | -7/Factory | Discovered new exit (range 16) 14332 | -7/Factory | Build established: Bothacker-Gunner 14332 | -7/Factory | Identified exit to Factory 14344 | -7/Factory | Fabricated Flexi-carbon Leg? 14389 | -7/Factory | Identified exit to Garrison 14389 | -7/Factory | Entered Garrison 14489 | -7/Garrison | Garrison Relay disabled 14738 | -7/Garrison | Build established: Bothacker-Mutant 15009 | -7/Garrison | Lost 3 parts (1p2n) 15052 | -7/Garrison | Discovered exit to Factory (range 10) 15351 | -7/Garrison | Triggered checkpoint 15358 | -7/Garrison | Garrison Relay disabled 15993 | -7/Garrison | Crushed by falling debris 16101 | -7/Garrison | Triggered checkpoint 16369 | -7/Garrison | Triggered checkpoint 16419 | -7/Garrison | Build established: Bothacker-Gunner 16923 | -7/Garrison | Discovered exit to Factory (range 10) 16945 | -7/Garrison | Triggered checkpoint 17005 | -7/Garrison | Garrison Relay disabled 17388 | -7/Garrison | Expanded RIF knowledge: Structural Interface 17420 | -7/Garrison | Build established: Bothacker-Mutant 17441 | -7/Garrison | Triggered checkpoint 17445 | -7/Garrison | Triggered checkpoint 17508 | -7/Garrison | Phase Generator disabled 17735 | -7/Garrison | Core integrity fell below 50% 17748 | -7/Garrison | Lost 3 parts (1n2w) 18012 | -7/Garrison | Build established: Commander-Mutant 18494 | -7/Garrison | Discovered exit to Factory (range 6) 18755 | -7/Garrison | Triggered checkpoint 18800 | -7/Garrison | Garrison Relay disabled 18893 | -7/Garrison | Crushed by falling debris 18894 | -7/Garrison | System corruption reached 10% 18924 | -7/Garrison | Lost 3 parts (2n1u) 19122 | -7/Garrison | Entered Factory 19122 | -6/Factory | Accompanied by 7 allies 19122 | -6/Factory | Evolved 2 slots: Utility x1, Weapon x1 19471 | -6/Factory | Build established: Commander-Skirmisher 19472 | -6/Factory | First assault squad dispatched 19507 | -6/Factory | Identified exit to Garrison 19522 | -6/Factory | Entered Garrison 19522 | -6/Garrison | Accompanied by 5 allies 20472 | -6/Garrison | Triggered checkpoint 20525 | -6/Garrison | Lost 3 parts (1n2w) 20556 | -6/Garrison | Triggered checkpoint 20611 | -6/Garrison | Garrison Relay disabled 20960 | -6/Garrison | Triggered checkpoint 20960 | -6/Garrison | Triggered checkpoint 20980 | -6/Garrison | Spotted B-75 Beast 21018 | -6/Garrison | Destroyed 8 combat bots 21019 | -6/Garrison | Lost 4 allies 21074 | -6/Garrison | Destroyed B-75 Beast 21260 | -6/Garrison | Triggered checkpoint 21295 | -6/Garrison | Garrison Relay disabled 21347 | -6/Garrison | Build established: Scavenger-Tank 21619 | -6/Garrison | Expanded RIF knowledge: Robot Detection 21693 | -6/Garrison | Discovered new exit (range 5) 21851 | -6/Garrison | Build established: Scavenger-Skirmisher 22043 | -6/Garrison | Found embedded Infiltrators 22075 | -6/Garrison | Discovered new exit (range 10) 22154 | -6/Garrison | Triggered checkpoint 22222 | -6/Garrison | Triggered checkpoint 22250 | -6/Garrison | Garrison Relay disabled 22320 | -6/Garrison | Expanded RIF knowledge: Autoassimilate 22548 | -6/Garrison | Triggered checkpoint 22594 | -6/Garrison | Triggered checkpoint 22636 | -6/Garrison | Garrison Relay disabled 22770 | -6/Garrison | Discovered new exit (range 10) 23045 | -6/Garrison | Entered Factory 23045 | -6/Factory | Accompanied by 1 ally 23395 | -6/Factory | First assault squad dispatched 23870 | -6/Factory | Build established: Hacker-Assassin 24081 | -6/Factory | Crushed by falling debris 24081 | -6/Factory | System corruption reached 10% 24601 | -6/Factory | Lost 4 allies 24602 | -6/Factory | Build established: Botlord-Skirmisher 24639 | -6/Factory | Core integrity fell below 50% 24701 | -6/Factory | Lost 9 parts (1p2n3u3w) 25123 | -6/Factory | Identified exit to Garrison 25124 | -6/Factory | Entered Garrison 25124 | -6/Garrison | Accompanied by 2 allies 25246 | -6/Garrison | Core integrity fell below 20% 25254 | -6/Garrison | Core melted Last Messages --------------- 25139_ Dropped Flexi-carbon Leg. 25140_ Dropped Carbon-fiber Leg. 25140_ Dropped Hyb. Fission Core. 25145_ Detecting nearby RIF Installer. 25153_ DGYFGA5CYBFTWJ|>B=JL:Q 25191_ X4|H7IFA5#G>MWEQE%ZUZ%SI8LF3V|B,J|7KFT 25223_ =YWL SP,PM/TO|XALMC TGNEJZUV3FB YC 25233_ Dropped Remote Datajack. 25236_ Arm. Leg destroyed. 25241_ System corrupted: Heat flow error (+203). 25243_ G-50 Soldier destroyed. 25246_ Overheating: Core damaged (-119). 25247_ Critical hit (Burn: +37). 25249_ Power failure, Lgt. Antimatter Reactor shutdown. 25249_ Arm. Leg destroyed. 25250_ Overheating: Matter decay (-33). 25251_ Critical hit (Burn: +37). 25252_ Processor 5a destroyed. 25253_ Overheating: Enh. Optical Array damaged (-7). 25254_ Overheating: Core damaged (-110). Map ----- +----------------------------------------------------+ | ?????????????????????????????????????????????????? | | ?????????????????????????????????????????????????? | | ?????????????????????????????????????????????????? | | ?????????????????????????????????????????????????? | | ?????????????????????????????????????????????????? | | ?????????????????????????????????????????????????? | | ?????????????????????????????????????????????????? | | ?????????????????????????????????????????????????? | | ?????????????????????????????????????????????????? | | ?????????????????????????????????????????????????? | | ?????????????????????????????????????????????????? | | ?????????????????????????????????????????????????? | | ?????????????????????????????????????????????????? | | ?????????????????????????????????????????????????? | | ?????????????????????????????????????????????????? | | ?????????????????????????????????????????????????? | | ?????????????????????????????????????????????????? | | ?????????????????????????????????????????????????? | | ?????????????????????????????????????????????????? | | ?????????????????????????????????????????????????? | | ?????????????????????????????????????????????????? | | ?????????????????????????????????????????????????? | | ???????????????????????######????????????????????? | | ???????????????????????# #????????????????????? | | ???????????????????????#| !!#????????????????????? | | ???????????????????????# @!=#????????????????????? | | ???????????????????????###gg#????????????????????? | | ?????????????????????????#[g#????????????????????? | | ?????????????????????????# *#????????????????????? | | ?????????????????????????# !#????????????????????? | | ?????????????????????????# #????????????????????? | | ?????????????????????? #????????????????????? | | ?????????????????????##### ???????????????????? | | ?????????????Y???????????# ??????????????????? | | ?????????????????????????##+####?????????????????? | | ?????????????????????????????????????????????????? | | ????????????????????????sss??????????????????????? | | ???????????????????????????s?????????????????????? | | ?????????????????????????????????????????????????? | | ?????????????????????????????????????????????????? | | ?????????????????????????????????????????????????? | | ?????????????????????????????????????????????????? | | ????????????????????""""?????????????????????????? | | ????????????????????"????????????????????????????? | | ????????????????????""""?????????????????????????? | | ?????????????????????????????????????????????????? | | ?????????????????????????????????????????????????? | | ?????????????????????????????????????????????????? | | ?????????????????????????????????????????????????? | | ?????????????????????????????????????????????????? | +----------------------------------------------------+ Best States ------------- Heat Dissipation 75 Energy Generation 25 Energy Capacity 900 Matter Stores 1288 Matter Capacity 1800 Sight Range 22 Robot Scan Range 20 Terrain Scan Density 10 Jamming Range 12 Armor Coverage 225 Resistance: KI 20 Evasion (%) 55 Targeting Accuracy 8 Core Analysis 6 Recoil Reduction 2 Offensive Hacking 14 Defensive Hacking 14 Relay Coupler Types 3 Relay Coupler Value 62 Authchip Count 1 Item Schematics ----------------- Mass Driver | -6/Factory | Hacked Robot Schematics ------------------ None Fabricated ------------ O-24 Administrator | x1 | -7/Factory | Preloaded L-41 Fighter | x3 | -7/Factory | Preloaded Flexi-carbon Leg | x2 | -7/Factory | Preloaded Repaired ---------- Nothing Studied --------- None Alien Tech Used ----------------- None Achievements -------------- Hackathon Infiltrator May I Have Another? Challenges ------------ None Game ------ Seed HelicalMicroGutpuncher Manual? 0 Play Time 03:23:14 Cumulative 139.8 hours Start 2026.09.04 @ 14:33:42 End 2026.09.04 @ 21:52:24 Sessions 1 Manual Loads 0 Difficulty Rogue Special Mode None Game No. 119 Rogue 117 Adventurer 2 Explorer 0 Win Type - Total 0 Types 0/0/0/0/0/0/0/0/0/0 Lore% 59 Gallery% 50 Achievement% 41 Wizard Run 0 Options --------- Layout 0 ASCII 0 Keyboard 0 Movement Mouse Keybinds 0 Fullscreen 2 Font 24/Smallcaps Map View 76x50 Zoom Use 0% Tactical HUD 1 Map Filters NONE Filters NONE Steam 1 RUN: 0aedab65-200a-457c-ae38-279f2887c698